Cogmind - Beta 16.1 @@@ ROGUE MODE // 2026.02.14 @ 22:22:01 // Winter2019/RPGLIKE Player: badjay Result: Self-destructed Performance ------------- Evolutions (3) 1500 Regions Visited (9) 1800 Robots Destroyed (19) 95 Value Destroyed (710) 710 Prototype IDs (5) 100 Alien Tech Used (0) 0 Bonus (793) 793 TOTAL SCORE: 4998 Bonus ------- Pacifist 200 Follower Combat Kills 93 Entered DSFs 500 Cogmind --------- Core Integrity 75/600 Matter 175/300 Energy 150/150 System Corruption 0% Temperature Cool (0) Movement Flying (29) Location -7/DSF Parts ------- > --- POWER (1) -------- Micro Nuclear Core > --- PROPULSION (3) --- Cesium-ion Thruster Cesium-ion Thruster Surge Thruster > --- UTILITY (3) ------ Advanced Visual Processing Unit Improved Sensor Array > --- WEAPON (4) ------- Chainsword Chainsword Spear Spear > --- INVENTORY (1) ---- Hacking Suite Peak State ------------ > --- POWER ------------ Micro Nuclear Core > --- PROPULSION ------- Cesium-ion Thruster Cesium-ion Thruster Surge Thruster > --- UTILITY ---------- Advanced Visual Processing Unit Improved Sensor Array > --- WEAPON ----------- Chainsword Chainsword Spear Spear > --- INVENTORY -------- Hacking Suite [Rating: 35] Favorites ----------- Power Heavy Ion Engine Engine Heavy Ion Engine Power Core Micro Nuclear Core Propulsion Flight Unit Flight Unit Flight Unit Utility Advanced Visual Processing Unit Device Improved Sensor Array Processor Advanced Visual Processing Unit Weapon Great Maul Impact Weapon Great Maul Slashing Weapon Axe Piercing Weapon Spear Build | -11 -10 -10 -9 -9 -9 -8 -8 -7 -7 ------- Run | Yrd Mat Min Mat Min Exi Min Mat Fac DSF Slots Evolved 7 | . . . 1 . . 1 3 . 2 Power . | . . . . . . . . . . Propulsion 2 | . . . . . . 1 1 . . Utility 2 | . . . . . . . 2 . . Weapon 3 | . . . 1 . . . . . 2 Parts Attached 20 | . 1 . 3 . . 2 9 . 5 Power 4 | . . . . . . 1 2 . 1 Engine 2 | . . . . . . 1 1 . . Core 2 | . . . . . . . 1 . 1 Reactor . | . . . . . . . . . . Propulsion 5 | . 1 . . . . 1 3 . . Treads . | . . . . . . . . . . Leg . | . . . . . . . . . . Wheel . | . . . . . . . . . . Hover . | . . . . . . . . . . Flight 5 | . 1 . . . . 1 3 . . Utility 3 | . . . 1 . . . 2 . . Device 1 | . . . . . . . 1 . . Storage . | . . . . . . . . . . Processor 2 | . . . 1 . . . 1 . . Hackware . | . . . . . . . . . . Protection . | . . . . . . . . . . Artifact . | . . . . . . . . . . Weapon 8 | . . . 2 . . . 2 . 4 Energy Gun . | . . . . . . . . . . Energy Cannon . | . . . . . . . . . . Ballistic Gun . | . . . . . . . . . . Ballistic Cannon . | . . . . . . . . . . Launcher . | . . . . . . . . . . Special Weapon . | . . . . . . . . . . Impact Weapon 2 | . . . 2 . . . . . . Slashing Weapon 4 | . . . . . . . 2 . 2 Piercing Weapon 2 | . . . . . . . . . 2 Special Melee Weapon . | . . . . . . . . . . Unidentified Prototypes 1 | . . . . . . . 1 . . Parts Lost 2 | . . . . . . . 2 . . Power . | . . . . . . . . . . Propulsion 1 | . . . . . . . 1 . . Utility 1 | . . . . . . . 1 . . Weapon . | . . . . . . . . . . Highest Loss Streak 1 | . . . . . . . 1 . . To Critical Strikes . | . . . . . . . . . . Average Backups . | . . . . . . . . 1 1 Power . | . . . . . . . . . . Propulsion . | . . . . . . . . . . Utility . | . . . . . . . . 1 1 Weapon . | . . . . . . . . . . Tool/Special . | . . . . . . . . . . Unused Backups 1 | . . . . . . . . . 1 Power . | . . . . . . . . . . Propulsion . | . . . . . . . . . . Utility 1 | . . . . . . . . . 1 Weapon . | . . . . . . . . . . Tool/Special . | . . . . . . . . . . Average Slot Usage (%) 80 | . 10 25 69 80 80 93 98 77 84 Engine 5 | . . . . . . 10 11 11 4 Flight 24 | . 10 25 21 20 20 29 27 33 28 Device 4 | . . . . . . . 10 11 9 Processor 17 | . . . 16 20 20 17 23 11 9 Impact Weapon 23 | . . . 31 40 40 34 16 . . Slashing Weapon 3 | . . . . . . . 7 11 12 Peak Build Rating 35 | . 1 1 10 10 10 15 26 21 35 Average Rating 14 | . . 1 8 10 10 13 22 20 33 On Entrance 8 | . . 1 1 10 10 10 15 21 21 Avg Prop Armor Cover (%) . | . . . . . . . . . . Naked Turns 22 | . 22 . . . . . . . . Heaviest Build 19 | . . . 8 8 8 13 17 11 19 Greatest Support 29 | 3 4 4 9 9 9 13 29 28 28 Greatest Overweight (x) 1 | . . . . . . . 1 . . Average Overweight (x) . | . . . . . . . . . . Largest Inventory Capacity 1 | . . . . . . . 1 1 1 Average Capacity . | . . . . . . . . 1 1 Most Carried 1 | . . . . . . . 1 1 1 Average Carried . | . . . . . . . . 1 1 Final Capacity 1 | . . . . . . . 1 1 1 Final Carried 1 | . . . . . . . 1 1 1 Class Distribution -------------------- 46% | Gladiator 36% | Scout 12% | Mutant 4% | Sprinter Dominant Class ---------------- Mutant | -10/Materials Mutant | -10/Mines Gladiator | -9/Materials Gladiator | -9/Mines Gladiator | -9/Exiles Gladiator | -8/Mines Scout | -8/Materials Scout | -7/Factory Sprinter | -7/DSF Resources | -11 -10 -10 -9 -9 -9 -8 -8 -7 -7 ----------- Run | Yrd Mat Min Mat Min Exi Min Mat Fac DSF Matter Collected 300 | 94 . 46 100 . . 20 40 . . Remotely . | . . . . . . . . . . Salvage Created 678 | . . . 91 . . 183 404 . . Parts 20 | . . . 1 . . 7 12 . . Haulers Intercepted . | . . . . . . . . . . Recyclers Shooed . | . . . . . . . . . . Parts Field Recycled . | . . . . . . . . . . Retrieved Matter . | . . . . . . . . . . Parts Self-Destructed . | . . . . . . . . . . Prevented . | . . . . . . . . . . Parts Restored . | . . . . . . . . . . Kills | -11 -10 -10 -9 -9 -9 -8 -8 -7 -7 ------- Run | Yrd Mat Min Mat Min Exi Min Mat Fac DSF Combat Hostiles Destroyed 16 | . . . 1 . . 3 12 . . Melee 10 | . . . . . . 3 7 . . Classes Destroyed 4 | . . . 2 . . 1 1 . . Watcher 3 | . . . 2 . . . 1 . . Swarmer 3 | . . . . . . . 3 . . Grunt 11 | . . . . . . 3 8 . . Sentry 2 | . . . 1 . . . 1 . . Best Kill Streak 6 | . . . 1 . . 3 6 . . Combat Bots Only 6 | . . . 1 . . 3 6 . . Max Kills in Single Turn 1 | . . . 1 . . 1 1 . . Gunslinging . | . . . . . . . . . . Exploded . | . . . . . . . . . . Melee 1 | . . . . . . 1 1 . . Uniques/NPCs Destroyed . | . . . . . . . . . . Combat | -11 -10 -10 -9 -9 -9 -8 -8 -7 -7 -------- Run | Yrd Mat Min Mat Min Exi Min Mat Fac DSF Hostile Shots Fired 108 | . . 21 11 . . 8 61 . 7 Missed 48 | . . 15 3 . . 2 25 . 3 Hits 60 | . . 6 8 . . 6 36 . 4 Melee 9 | . . . . . . . 7 . 2 Projectile 51 | . . 6 8 . . 6 29 . 2 AOE 3 | . . . . . . . 2 . 1 Critical Strikes 3 | . . . . . . . 3 . . Damage Taken 1022 | . . 51 117 . . 103 605 . 146 Core 885 | . . 49 111 . . 89 520 . 116 Absorbed by Shields 8 | . . . . . . . . . 8 Redirected to Core 462 | . . 5 23 . . 52 278 . 104 Core Remaining (%) 70 | 100 . 91 . . . 58 31 . . Volleys Fired . | . . . . . . . . . . Largest . | . . . . . . . . . . Hottest . | . . . . . . . . . . Shots Fired . | . . . . . . . . . . Gun . | . . . . . . . . . . Cannon . | . . . . . . . . . . Launcher . | . . . . . . . . . . Special . | . . . . . . . . . . Kinetic . | . . . . . . . . . . Thermal . | . . . . . . . . . . Explosive . | . . . . . . . . . . Electromagnetic . | . . . . . . . . . . Robot Hit Streak . | . . . . . . . . . . Robot Miss Streak . | . . . . . . . . . . Penetration Max . | . . . . . . . . . . Secondary Targets . | . . . . . . . . . . Shots Hit Robots 35 | . . . 7 . . 6 22 . . Core Hits 8 | . . . . . . 3 5 . . Critical Kills 1 | . . . . . . 1 . . . Critical Parts Destroyed 11 | . . . 1 . . . 10 . . Critical Strikes 12 | . . . 1 . . 1 10 . . Smash 12 | . . . 1 . . 1 10 . . Melee Attacks 53 | . . . 9 . . 6 38 . . Impact 45 | . . . 9 . . 6 30 . . Slashing 8 | . . . . . . . 8 . . Piercing . | . . . . . . . . . . Sneak Attacks . | . . . . . . . . . . Combat Hostiles . | . . . . . . . . . . Follow-up Attacks 3 | . . . 2 . . 1 . . . Damage Inflicted 1566 | . . . 269 . . 264 1033 . . Guns . | . . . . . . . . . . Cannons . | . . . . . . . . . . Explosions . | . . . . . . . . . . Melee 1566 | . . . 269 . . 264 1033 . . Ramming . | . . . . . . . . . . Kinetic . | . . . . . . . . . . Thermal . | . . . . . . . . . . Explosive . | . . . . . . . . . . Electromagnetic . | . . . . . . . . . . Impact 1517 | . . . 269 . . 264 984 . . Slashing 49 | . . . . . . . 49 . . Piercing . | . . . . . . . . . . Highest Corruption . | . . . . . . . . . . Average Corruption . | . . . . . . . . . . Corruption Purged . | . . . . . . . . . . Corruption Blocked . | . . . . . . . . . . Overload Shots . | . . . . . . . . . . Overflow Damage 579 | . . . 83 . . . 496 . . Projectiles . | . . . . . . . . . . Explosions . | . . . . . . . . . . Melee 579 | . . . 83 . . . 496 . . Knockbacks 3 | . . . . . . . 3 . . Impact 3 | . . . . . . . 3 . . Kinetic . | . . . . . . . . . . Secondary . | . . . . . . . . . . Self-Inflicted Damage . | . . . . . . . . . . Shots . | . . . . . . . . . . Rammed . | . . . . . . . . . . Targets Rammed . | . . . . . . . . . . Kicked . | . . . . . . . . . . Crushed . | . . . . . . . . . . Highest Temperature . | . . . . . . . . . . Average Temperature . | . . . . . . . . . . Received Heat Transfer 243 | . . 9 36 . . 54 144 . . Siege Activations . | . . . . . . . . . . Martial Activations . | . . . . . . . . . . Shielding Activations . | . . . . . . . . . . Robots Disrupted . | . . . . . . . . . . Combat Hostiles . | . . . . . . . . . . Robots Corrupted 7 | . . . 2 . . . 5 . . Combat Hostiles 6 | . . . 1 . . . 5 . . Parts Fried 9 | . . . 3 . . . 6 . . Impact Corruptions 19 | . . . 4 . . . 15 . . Robots Melted . | . . . . . . . . . . Combat Hostiles . | . . . . . . . . . . Parts Melted . | . . . . . . . . . . Heat Transferred . | . . . . . . . . . . Parts Sabotaged . | . . . . . . . . . . Parts Stolen . | . . . . . . . . . . Parts Stripped . | . . . . . . . . . . Power Chain Reactions . | . . . . . . . . . . Alert | -11 -10 -10 -9 -9 -9 -8 -8 -7 -7 ------- Run | Yrd Mat Min Mat Min Exi Min Mat Fac DSF Maximum Alert Level 2 | . . . . . . . 2 . . Low Security (%) 74 | 100 100 100 100 100 . 100 42 100 100 Level 1 19 | . . . . . . . 45 . . Level 2 5 | . . . . . . . 12 . . Level 3 . | . . . . . . . . . . Level 4 . | . . . . . . . . . . Level 5 . | . . . . . . . . . . High Security . | . . . . . . . . . . Max Security . | . . . . . . . . . . Peak Influence 505 | . . 65 123 36 . 75 505 152 114 Initial 152 | . . . 25 36 . . 13 152 99 Average 138 | . . 30 97 23 . 28 248 151 104 Influence Increases 1090 | . . 105 158 . . 115 697 . 15 Destroy 0b10 Robot/C 380 | . . . 80 . . 60 240 . . Destroy 0b10 Robot/NC 15 | . . . 10 . . . 5 . . Destroy Leader 96 | . . . 34 . . 10 52 . . Allied During Kill 12 | . . . 12 . . . . . . Successful Hack 36 | . . . 4 . . . 32 . . Disable Machine 15 | . . . . . . . 15 . . Destroy Structure 11 | . . . 3 . . . 8 . . Partial Spotted 45 | . . . 15 . . . 30 . . Lose Combat Pursuer 480 | . . 105 . . . 45 315 . 15 Influence Decreases 976 | . . 40 130 87 6 80 396 194 43 Entered New Map 352 | . . . 40 57 6 . 22 184 43 Time Decay 504 | . . 40 90 30 . 80 254 10 . Search Patrol Dispatched 100 | . . . . . . . 100 . . Lost Part 20 | . . . . . . . 20 . . Squads Dispatched 9 | . . 1 4 . . . 3 . 1 Investigation 3 | . . . 2 . . . 1 . . Extermination . | . . . . . . . . . . Reinforcement 5 | . . . 2 . . . 2 . 1 Assault 1 | . . 1 . . . . . . . Garrison . | . . . . . . . . . . Intercept . | . . . . . . . . . . Searches Triggered 1 | . . . . . . . 1 . . Construction Impeded . | . . . . . . . . . . Haulers Reinforced . | . . . . . . . . . . Active Scanning Responses . | . . . . . . . . . . Cargo Convoy Interrupts . | . . . . . . . . . . Stealth | -11 -10 -10 -9 -9 -9 -8 -8 -7 -7 --------- Run | Yrd Mat Min Mat Min Exi Min Mat Fac DSF Distress Signals 1 | . 1 . . . . . . . . Communications Jammed . | . . . . . . . . . . Distress Signals . | . . . . . . . . . . Times Spotted 68 | . 3 7 6 . . 4 43 . 5 Peak Tracking Total 10 | . 6 5 3 . . 3 10 . 5 Tactical Retreats 11 | . . 3 . . . 1 6 . 1 Traps | -11 -10 -10 -9 -9 -9 -8 -8 -7 -7 ------- Run | Yrd Mat Min Mat Min Exi Min Mat Fac DSF Traps Triggered 3 | . . . . . . . 1 1 1 Indirectly . | . . . . . . . . . . Trap Hack Attempts . | . . . . . . . . . . Triggered . | . . . . . . . . . . Disarmed . | . . . . . . . . . . Reprogrammed . | . . . . . . . . . . Reused . | . . . . . . . . . . Traps Extracted . | . . . . . . . . . . Installed . | . . . . . . . . . . Triggered . | . . . . . . . . . . Machines | -11 -10 -10 -9 -9 -9 -8 -8 -7 -7 ---------- Run | Yrd Mat Min Mat Min Exi Min Mat Fac DSF Machines Disabled 1 | . . . . . . . 1 . . Max in Single Turn 1 | . . . . . . . 1 . . Machines Repaired . | . . . . . . . . . . Machines Dismantled . | . . . . . . . . . . Machines Sabotaged . | . . . . . . . . . . Overloaded Fab Kills . | . . . . . . . . . . Hacking | -11 -10 -10 -9 -9 -9 -8 -8 -7 -7 --------- Run | Yrd Mat Min Mat Min Exi Min Mat Fac DSF Machines Accessed 17 | . 1 . 3 . 2 . 9 2 . Terminals 15 | . 1 . 3 . . . 9 2 . Fabricators . | . . . . . . . . . . Repair Stations . | . . . . . . . . . . Recycling Units . | . . . . . . . . . . Scanalyzers . | . . . . . . . . . . Garrison Access . | . . . . . . . . . . Total Hacks 68 | . 1 . 15 . 5 . 41 6 . Successful 36 | . . . 9 . 5 . 21 1 . Failed 32 | . 1 . 6 . . . 20 5 . Catastrophic 6 | . 1 . 1 . . . 4 . . Database Lockouts . | . . . . . . . . . . Manual 34 | . 1 . 5 . . . 26 2 . Terminals 63 | . 1 . 15 . . . 41 6 . Fabricators . | . . . . . . . . . . Repair Stations . | . . . . . . . . . . Recycling Units . | . . . . . . . . . . Scanalyzers . | . . . . . . . . . . Garrison Access . | . . . . . . . . . . Terminal Hacks 25 | . . . 5 . 5 . 14 1 . Record 5 | . . . . . 5 . . . . Prototype ID Bank 2 | . . . 1 . . . 1 . . Open DSF 1 | . . . . . . . . 1 . Branch Access Points 1 | . . . . . . . 1 . . Terminal Index 1 | . . . . . . . 1 . . Alert Level 3 | . . . 1 . . . 2 . . Dispatch Records 1 | . . . 1 . . . . . . Maintenance Status 1 | . . . . . . . 1 . . Reinforcement Status 1 | . . . . . . . 1 . . Hauler Manifests 1 | . . . . . . . 1 . . Registered Components 1 | . . . . . . . 1 . . Registered Prototypes 2 | . . . 1 . . . 1 . . Zone Layout 5 | . . . 1 . . . 4 . . Fabricator Hacks . | . . . . . . . . . . Repair Station Hacks . | . . . . . . . . . . Recycling Unit Hacks . | . . . . . . . . . . Scanalyzer . | . . . . . . . . . . Garrison Access Hacks . | . . . . . . . . . . Unauthorized Hacks 11 | . . . 4 . . . 7 . . Terminals 11 | . . . 4 . . . 7 . . Track 4 | . . . 1 . . . 3 . . Botnet 5 | . . . 2 . . . 3 . . Disrupt 1 | . . . . . . . 1 . . Operators 1 | . . . 1 . . . . . . Fabricators . | . . . . . . . . . . Repair Stations . | . . . . . . . . . . Recycling Units . | . . . . . . . . . . Scanalyzers . | . . . . . . . . . . Garrison Access . | . . . . . . . . . . Data Cores Recovered . | . . . . . . . . . . Used . | . . . . . . . . . . Hacking Detections 15 | . 1 . 3 . . . 9 2 . Full Trace Events . | . . . . . . . . . . Feedback Events . | . . . . . . . . . . Feedback Blocked . | . . . . . . . . . . Robot Schematics Acquired . | . . . . . . . . . . Robots Built . | . . . . . . . . . . Authchips . | . . . . . . . . . . Time . | . . . . . . . . . . Total Robot Build Rating . | . . . . . . . . . . Part Schematics Acquired . | . . . . . . . . . . Parts Built . | . . . . . . . . . . Authchips . | . . . . . . . . . . Time . | . . . . . . . . . . Total Part Build Rating . | . . . . . . . . . . Part Studies Acquired . | . . . . . . . . . . Parts Repaired . | . . . . . . . . . . Time . | . . . . . . . . . . Parts Recycled . | . . . . . . . . . . Recycled Matter . | . . . . . . . . . . Retrieved Matter . | . . . . . . . . . . Retrieved Components . | . . . . . . . . . . Parts Scanalyzed . | . . . . . . . . . . Part Schematics Acquired . | . . . . . . . . . . Parts Damaged . | . . . . . . . . . . Bothacking | -11 -10 -10 -9 -9 -9 -8 -8 -7 -7 ------------ Run | Yrd Mat Min Mat Min Exi Min Mat Fac DSF Used RIF Installer . | . . . . . . . . . . Robots Hacked . | . . . . . . . . . . Non-combat . | . . . . . . . . . . Combat . | . . . . . . . . . . Robot Hacks Applied . | . . . . . . . . . . Relay Couplers Released . | . . . . . . . . . . Fabnet Peak Effective % . | . . . . . . . . . . Robots Rewired . | . . . . . . . . . . Allies Hacked . | . . . . . . . . . . Hacks Repelled . | . . . . . . . . . . Allies | -11 -10 -10 -9 -9 -9 -8 -8 -7 -7 -------- Run | Yrd Mat Min Mat Min Exi Min Mat Fac DSF Total Allies 3 | . . 3 . . . . . . . Largest Group 2 | . . 2 2 2 2 . . . . Highest-Rated Group 46 | . . 46 46 46 46 . . . . Highest-Rated Ally 31 | . . 31 31 31 31 . . . . Total Orders . | . . . . . . . . . . Ally Attacks 11 | . . 2 9 . . . . . . Total Damage 211 | . . 21 190 . . . . . . Kills 3 | . . . 3 . . . . . . Allies Corrupted . | . . . . . . . . . . Allies Melted . | . . . . . . . . . . Intel | -11 -10 -10 -9 -9 -9 -8 -8 -7 -7 ------- Run | Yrd Mat Min Mat Min Exi Min Mat Fac DSF Active Infowar (turns) 1325 | . . . 172 66 247 217 550 20 53 Optics 1325 | . . . 172 66 247 217 550 20 53 Sensors 609 | . . . . . . . 536 20 53 Robot Analysis Total . | . . . . . . . . . . Derelict Logs Recovered 1 | . . 1 . . . . . . . Drone Launches . | . . . . . . . . . . Drone Recoveries . | . . . . . . . . . . Exploration | -11 -10 -10 -9 -9 -9 -8 -8 -7 -7 ------------- Run | Yrd Mat Min Mat Min Exi Min Mat Fac DSF Turns Passed 1519 | 11 44 112 199 66 247 217 550 20 53 Spaces Moved 2867 | 22 95 249 329 109 548 526 863 56 70 Core 65 | 22 43 . . . . . . . . Treads . | . . . . . . . . . . Legs . | . . . . . . . . . . Wheels . | . . . . . . . . . . Hover . | . . . . . . . . . . Flight 2802 | . 52 249 329 109 548 526 863 56 70 Fastest Speed 29 | 50 40 40 40 40 40 34 29 29 29 Average Speed 36 | 50 44 40 40 40 40 35 32 29 29 Slowest Speed 115 | 50 50 40 40 40 40 40 115 32 29 Overloaded Moves . | . . . . . . . . . . Propulsion Burnouts . | . . . . . . . . . . Robots Hopped 13 | . . 4 2 . . 2 5 . . Potential Cave-ins . | . . . . . . . . . . Cave-ins Triggered . | . . . . . . . . . . Exploration Rate (%) 46 | 3 26 56 32 25 93 92 79 2 54 Regions Visited 9 Branch Regions 4 Pre-discovered Areas 1 | . . . . . 1 . . . . Known Exits Taken 2 | . . . . . . . 1 1 . Unknown Exits Taken 7 | 1 1 1 1 1 1 1 . . . Scrap Searched 3 | . . 1 . 1 . 1 . . . Spaces Dug 8 | . . . . . . . 8 . . Terrain Destroyed 8 | . . . . . . . 8 . . Melee 8 | . . . . . . . 8 . . Projectile . | . . . . . . . . . . AOE . | . . . . . . . . . . Terrain Rammed . | . . . . . . . . . . Walls Destroyed . | . . . . . . . . . . Machines Disabled . | . . . . . . . . . . Actions | -11 -10 -10 -9 -9 -9 -8 -8 -7 -7 --------- Run | Yrd Mat Min Mat Min Exi Min Mat Fac DSF Total 3213 | 21 95 256 377 130 575 541 1061 57 100 Wait 274 | . . 12 41 22 28 11 139 . 21 Move 2832 | 21 94 240 324 108 547 521 852 55 70 Hop 13 | . . 4 2 . . 2 5 . . Pick Up 1 | . . . . . . . 1 . . Fast Attach 21 | . 1 . 3 . . 2 9 2 4 Attach . | . . . . . . . . . . Detach . | . . . . . . . . . . Swap 2 | . . . . . . . 1 . 1 Drop 6 | . . . . . . . 5 . 1 Fire . | . . . . . . . . . . Melee 45 | . . . 7 . . 5 33 . . Ram . | . . . . . . . . . . Kick . | . . . . . . . . . . Crush . | . . . . . . . . . . Escape Stasis 3 | . . . . . . . . . 3 Rewire . | . . . . . . . . . . Trap . | . . . . . . . . . . Miscellaneous 16 | . . . . . . . 16 . . Route ------- -11/Scrapyard -10/Materials -10/Mines -9/Materials -9/Mines -9/Exiles (discovered 2 exits: [*Min x2]) -8/Mines (discovered 2 exits: *Mat x2) -8/Materials (discovered 3 exits: *Fac x2 / *Sto) -7/Factory -7/DSF History --------- Turn | Location | Event 5 | -11/Scrapyard | Discovered new exit (range 13) 12 | -11/Scrapyard | Entered Materials 52 | -10/Materials | Discovered new exit (range 9) 56 | -10/Materials | Entered Mines 70 | -10/Mines | Met a Derelict testing a Signal Generator 97 | -10/Mines | Learned Materials emergency access door positions 152 | -10/Mines | Discovered new exit (range 6) 168 | -10/Mines | Entered Materials 168 | -9/Materials | Accompanied by 2 allies 170 | -9/Materials | Reached level 2 173 | -9/Materials | Led the pair of lost Derelicts to an unsafe place 200 | -9/Materials | Upgraded with Weapon slot (x1) 312 | -9/Materials | Met 8R-AWN 329 | -9/Materials | Discovered new exit (range 8) 367 | -9/Materials | Entered Mines 367 | -9/Mines | Accompanied by 2 allies 368 | -9/Mines | Followed 8R-AWN into the Mines 369 | -9/Mines | Reached level 3 414 | -9/Mines | Discovered new exit (range 5) 433 | -9/Mines | Entered Exiles 433 | -9/Exiles | Accompanied by 2 allies 439 | -9/Exiles | Discovered new exit (range 17) 455 | -9/Exiles | Welcomed by 8R-AWN 463 | -9/Exiles | Led the pair of lost Derelicts to a safe place 484 | -9/Exiles | Met EX-HEX 499 | -9/Exiles | Met EX-BIN 506 | -9/Exiles | Build established: Gladiator 540 | -9/Exiles | Met EX-DEC 559 | -9/Exiles | Visited The Gauntlet 614 | -9/Exiles | Learned location of Zion (-6) 626 | -9/Exiles | Discovered new exit (range 17) 680 | -9/Exiles | Entered Mines 680 | -8/Mines | Discovered new exit (range 17) 736 | -8/Mines | Found DCF Scrap (13 items) 736 | -8/Mines | Upgraded with Propulsion slot (x1) 867 | -8/Mines | Discovered new exit (range 4) 897 | -8/Mines | Entered Materials 899 | -8/Materials | Reached level 4 911 | -8/Materials | Upgraded with Utility slot (x2) 938 | -8/Materials | Discovered new exit (range 19) 999 | -8/Materials | Reached level 5 1032 | -8/Materials | Discovered new exit (range 20) 1151 | -8/Materials | Core integrity fell below 50% 1189 | -8/Materials | Identified exit to Storage 1194 | -8/Materials | Build established: Scout 1224 | -8/Materials | Upgraded with Propulsion slot (x1) 1297 | -8/Materials | Search patrols dispatched 1430 | -8/Materials | Discovered new exit (range 20) 1443 | -8/Materials | Identified exit to Factory 1447 | -8/Materials | Entered Factory 1448 | -7/Factory | Core integrity fell below 50% 1449 | -7/Factory | Reached level 6 1466 | -7/Factory | Identified exit to DSF 1467 | -7/Factory | Entered DSF 1467 | -7/DSF | Reached level 7 1473 | -7/DSF | Upgraded with Weapon slot (x1) 1476 | -7/DSF | Upgraded with Weapon slot (x1) 1494 | -7/DSF | Additional patrols routed to DSF 1508 | -7/DSF | Core integrity fell below 20% 1520 | -7/DSF | Self-destructed Last Messages --------------- 01467_ Dropped Scythe. 01469_ Acquired Spear. 01473_ Upgraded: Weapon Slot (+1) 01474_ Acquired Chainsword. 01476_ Upgraded: Weapon Slot (+1) 01476_ Acquired Chainsword. 01480_ ALERT: Suspicious intruders detected, dispatching Cutter reinforcements to area. 01484_ Acquired Mic. Nuclear Core. 01494_ Hostiles detected in DSF, routing additional patrols. 01511_ Knocked back. 01511_ C-17 Slicer knocked back. 01517_ Triggered Stasis Trap. 01517_ A bubble of rippling energy engulfs the area. 01517_ Field strength at 89. 01517_ Field strength at 78. 01518_ Field strength at 63. 01519_ Field strength at 52. Map ----- +----------------------------------------------------+ | ???????????????????????????????????????????? | | ???????????????????????????????????????????? | | ???????????????????????????????????????????? | | ???????????????????????????????###?????????? | | ???????????????????????????????#""?????????? | | ???????????????????????????????#"#?????????? | | ??????????????#########???????##"####??????? | | ??????????????#** #########"""""#??????? | | ??????????????#**% # #//##"""""#??#???? | | ??????????????# /""##"#???? | | ??????????????# / / / """""#???? | | ??????????????### ###/ # /## ""####???? | | ????????????????# #?#///#//### ###??????? | | ???????????????== ==########## ##???????? | | ??????????????#= ===#??????# #???????? | | ??????????????#== ==#??????#// #???????? | | ??????????????### = ###??????### ##???????? | | ????????????????[= !????????#// #???????? | | ??????????????#[[ !!???????#// #???????? | | ???????????????[[ !!???????#// #???????? | | ??????????????### ############ ###??????? | | ???????????????## H#?#===# ## !!#??????? | | ???????[[[#!!!## a##===# ## !!#??????? | | ?????? a c !!#??????? | | ?????? c !!#??????? | | ?????? @c !!#??????? | | ??????????#!!!##a a##!!!# ## #??????? | | ???????????????## ###!!!# ## #??????? | | ????????????????? #?###############??????? | | ????????????????? ???????????????????????? | | ????????????????? ???????????????????????? | | ???????????????????????????????????????????? | | ???????????????????????????????????????????? | | ???????????????????????????????????????????? | | ???????????????????????????????????????????? | | ???????????????????????????????????????????? | | ???????????????????????????????????????????? | | ???????????????????????????????????????????? | | ???????????????????????????????????????????? | | ???????????????????????????????????????????? | | ???????????????????????????????????????????? | | ???????????????????????????????????????????? | | ???????????????????????????????????????????? | | ???????????????????????????????????????????? | | ???????????????????????????????????????????? | | ???????????????????????????????????????????? | | ???????????????????????????????????????????? | | ???????????????????????????????????????????? | | ???????????????????????????????????????????? | | ???????????????????????????????????????????? | +----------------------------------------------------+ Best States ------------- Heat Dissipation 25 Energy Generation 15 Energy Capacity 280 Matter Stores 300 Matter Capacity 300 Sight Range 20 Robot Scan Range 15 Terrain Scan Density 10 Evasion (%) 64 Offensive Hacking 10 Defensive Hacking 5 Item Schematics ----------------- None Robot Schematics ------------------ None Fabricated ------------ Nothing Repaired ---------- Nothing Studied --------- None Alien Tech Used ----------------- None Achievements -------------- Follow The Leader I Have A Map? Overwhelming Spot Them First Challenges ------------ None RPGLIKE | -11 -10 -10 -9 -9 -9 -8 -8 -7 -7 --------- Run | Yrd Mat Min Mat Min Exi Min Mat Fac DSF Levels Raised 6 | . . . 1 1 . . 2 1 1 XP Earned 13120 | 3000 . 600 2095 500 200 850 3125 1500 1250 XP Spent 10550 | . 800 . 3300 . . 500 4050 . 1900 Upgrades 20 | . 3 . 8 . . 1 6 . 2 Propulsion Slot 2 | . . . . . . 1 1 . . Utility Slot 2 | . . . . . . . 2 . . Weapon Slot 3 | . . . 1 . . . . . 2 Mass Support 3 | . . . 1 . . . 2 . . Inventory Capacity 1 | . . . . . . . 1 . . Melee Accuracy 6 | . . . 6 . . . . . . Hack Attack % 2 | . 2 . . . . . . . . Hack Defense % 1 | . 1 . . . . . . . . Protomatter Created 159 | . . . . . . . 159 . . Integrity Restored 360 | . . . . . . . 360 . . Core 360 | . . . . . . . 360 . . Protomatter Decayed 266 | . . 52 214 . . . . . . Game ------ Seed HellfireTrapSteel Manual? 0 Play Time 00:29:42 Cumulative 172.5 hours Start 2026.02.14 @ 21:51:03 End 2026.02.14 @ 22:22:01 Sessions 1 Manual Loads 0 Difficulty Rogue Special Mode Winter2019/RPGLIKE Game No. 183 Rogue 183 Adventurer 0 Explorer 0 Win Type - Total 13 Types 11/0/0/1/0/0/1/0/0/0 Lore% 42 Gallery% 53 Achievement% 39 Wizard Run 0 Options --------- Layout 1 ASCII 0 Keyboard 0 Movement Numpad Keybinds 0 Fullscreen 1 Font 24/Smallcaps Map View 50x35 Zoom Use 0% Tactical HUD 1 Map Filters NONE Filters NONE Steam 1 RUN: 944213d6-b2cb-45cf-aff4-4cbf5f4c118d